[Event "Hungarian U20 Junior-ch Women 2024"]
[Site "Budapest"]
[Date "2024.03.11"]
[Round "1.1"]
[White "Szarvas, Nora"]
[Black "Toth, Lili"]
[Result "1/2-1/2"]
[ECO "C45"]
[WhiteElo "1955"]
[BlackElo "2199"]
[Annotator "RC"]
[PlyCount "90"]
[EventDate "2024.03.10"]
[EventCountry "HUN"]
[SourceTitle "playchess.com"]
[Source "ChessBase"]
[SourceQuality "1"]
[TimeControl "40/5400+30:1800+30"]

1. e4 {[%emt 0:00:35]} e5 {[%emt 0:00:38]} 2. Nf3 {[%emt 0:00:16]} Nc6 {[%emt 0:00:18]} 3. d4 {[%emt 0:00:14]} exd4 {[%emt 0:00:29]} 4. Nxd4 {[%emt 0:00:09]} Nf6 {[%emt 0:03:41]} 5. Nxc6 {[%emt 0:00:33]} bxc6 {[%emt 0:00:21]} 6. e5 {[%emt 0:00:17]} Qe7 {[%emt 0:00:22]} 7. Qe2 {[%emt 0:00:11]} Nd5 {[%emt 0:00:09]} 8. h4 {[%emt 0:00:36]} d6 {[%emt 0:09:07]} 9. exd6 {[%emt 0:01:11]} cxd6 {[%emt 0:00:59]} 10. Bd2 {[%emt 0:12:34]} Rb8 {[%emt 0:09:04]} 11. c4 {[%emt 0:10:23]} Nb4 {[%emt 0:02:52]} 12. Bxb4 {[%emt 0:05:13]} Rxb4 {[%emt 0:00:08]} 13. b3 {[%emt 0:03:54]} Bf5 {[%emt 0:11:39]} 14. Nd2 {[%emt 0:07:03]} g6 {[%emt 0:01:33]} 15. Nf3 {[%emt 0:13:53]} Bg7 {[%emt 0:18:21]} 16. Qxe7+ {[%emt 0:04:46]} Kxe7 {[%emt 0:00:06]} 17. O-O-O {[%emt 0:02:43]} Rhb8 {[%emt 0:02:10]} 18. Bd3 {[%emt 0:06:47]} Bg4 {[%emt 0:01:46]} 19. Rhe1+ {[%emt 0:05:25]} Kf8 {[%emt 0:05:36]} 20. Be4 {[%emt 0:05:44]} Bh6+ {[%emt 0:04:57]} 21. Kc2 {[%emt 0:01:04]} d5 {[%emt 0:01:34]} 22. Bd3 {[%emt 0:03:55]} Bg7 {[%emt 0:11:53]} 23. Rd2 {[%emt 0:03:28]} Rc8 {[%emt 0:10:41]} 24. Rde2 {[%emt 0:02:20]} Bf6 {[%emt 0:00:53]} 25. Re3 {[%emt 0:01:46]} Be6 {[%emt 0:00:42]} 26. c5 {[%emt 0:04:16]} Bxh4 {[%emt 0:02:29]} 27. a3 {[%emt 0:01:00]} Rg4 {[%emt 0:00:11]} 28. g3 {[%emt 0:01:12]} Be7 {[%emt 0:00:33]} 29. b4 {[%emt 0:01:24]} Bf6 30. Rh1 {[%emt 0:01:15]} Kg7 {[%emt 0:01:34]} 31. Be2 {[%emt 0:00:52]} Bf5+ {[%emt 0:00:22]} 32. Bd3 {[%emt 0:00:11]} Rc4+ {[%emt 0:00:35]} 33. Kd2 {[%emt 0:00:50]} Bxd3 {[%emt 0:00:21]} 34. Rxd3 {[%emt 0:00:29]} Re8 {[%emt 0:00:27]} 35. Re1 {[%emt 0:00:31]} Rxe1 {[%emt 0:00:22]} 36. Nxe1 {[%emt 0:00:18]} a5 {[%emt 0:00:53]} 37. Nc2 {[%emt 0:00:37]} axb4 {[%emt 0:00:35]} 38. axb4 {[%emt 0:00:16]} h5 {[%emt 0:00:30]} 39. Rb3 {[%emt 0:00:54]} Be7 {[%emt 0:00:31]} 40. Ne3 {[%emt 0:00:00]} Rd4+ {[%emt 0:00:00]} 41. Ke2 {[%emt 0:00:59]} Re4 {[%emt 0:10:28]} 42. Kf3 {[%emt 0:04:56]} Re6 {[%emt 0:09:24]} 43. Rd3 {[%emt 0:04:17]} Kf8 {[%emt 0:06:24]} 44. Nc2 {[%emt 0:04:14]} Ke8 {[%emt 0:01:19]} 45. Nd4 {[%emt 0:01:30]} Rf6+ {[%emt 0:01:46]} 1/2-1/2

[Event "Hungarian U20 Junior-ch Women 2024"]
[Site "Budapest"]
[Date "2024.03.11"]
[Round "1.2"]
[White "Buri, Petra Zsuzsanna"]
[Black "Nandin-Erdene, Davaademberel"]
[Result "1-0"]
[ECO "B10"]
[WhiteElo "1972"]
[BlackElo "1978"]
[Annotator "RC"]
[PlyCount "113"]
[EventDate "2024.03.10"]
[EventCountry "HUN"]
[SourceTitle "playchess.com"]
[Source "ChessBase"]
[SourceQuality "1"]
[TimeControl "40/5400+30:1800+30"]

1. e4 {[%emt 0:00:40]} c6 {[%emt 0:00:46]} 2. Nf3 {[%emt 0:00:11]} d5 {[%emt 0:00:25]} 3. exd5 {[%emt 0:00:19]} cxd5 {[%emt 0:00:16]} 4. Ne5 {[%emt 0:00:19]} Nf6 {[%emt 0:06:22]} 5. d4 {[%emt 0:00:53]} g6 {[%emt 0:02:52]} 6. Bb5+ {[%emt 0:01:27]} Nbd7 {[%emt 0:00:39]} 7. O-O {[%emt 0:02:17]} Bg7 {[%emt 0:00:31]} 8. Re1 {[%emt 0:05:16]} O-O {[%emt 0:01:39]} 9. Nc3 {[%emt 0:01:18]} a6 {[%emt 0:01:58]} 10. Bf1 {[%emt 0:03:25]} Nb6 {[%emt 0:19:57]} 11. a4 {[%emt 0:18:19]} Bf5 {[%emt 0:03:39]} 12. a5 {[%emt 0:09:21]} Nbd7 {[%emt 0:03:49]} 13. h3 {[%emt 0:08:06]} Rc8 {[%emt 0:03:25]} 14. Bd3 {[%emt 0:07:17]} Bxd3 {[%emt 0:09:40]} 15. Qxd3 {[%emt 0:02:42]} Nb8 {[%emt 0:09:11]} 16. Bd2 {[%emt 0:10:22]} Ne8 {[%emt 0:05:12]} 17. Na4 {[%emt 0:05:31]} f6 {[%emt 0:04:34]} 18. Ng4 {[%emt 0:01:45]} Nd7 {[%emt 0:04:29]} 19. Qb3 {[%emt 0:01:56]} Nc7 {[%emt 0:05:51]} 20. Qxb7 {[%emt 0:00:56]} e5 {[%emt 0:09:08]} 21. c3 {[%emt 0:03:00]} Rb8 {[%emt 0:01:08]} 22. Qc6 {[%emt 0:00:22]} Rb5 {[%emt 0:01:32]} 23. dxe5 {[%emt 0:05:31]} fxe5 {[%emt 0:02:24]} 24. Bg5 {[%emt 0:01:43]} Qxg5 {[%emt 0:01:44]} 25. Qxd7 {[%emt 0:00:34]} h5 {[%emt 0:01:12]} 26. Ne3 {[%emt 0:01:45]} Rf7 {[%emt 0:00:25]} 27. Qc6 {[%emt 0:01:35]} d4 {[%emt 0:00:26]} 28. cxd4 {[%emt 0:01:11]} exd4 {[%emt 0:00:04]} 29. Nc4 {[%emt 0:00:37]} Rbf5 {[%emt 0:00:57]} 30. Rf1 {[%emt 0:02:26]} R5f6 {[%emt 0:00:21]} 31. Qe4 {[%emt 0:00:47]} Re6 {[%emt 0:00:41]} 32. Qd3 {[%emt 0:01:18]} h4 {[%emt 0:00:35]} 33. Nab6 {[%emt 0:00:39]} Nd5 {[%emt 0:00:33]} 34. Nxd5 {[%emt 0:00:13]} Qxd5 {[%emt 0:00:04]} 35. Rad1 {[%emt 0:01:32]} Rf5 {[%emt 0:00:39]} 36. Ne3 {[%emt 0:00:18]} dxe3 {[%emt 0:00:36]} 37. Qxd5 {[%emt 0:00:17]} Rxd5 {[%emt 0:00:19]} 38. Rxd5 {[%emt 0:00:20]} e2 {[%emt 0:00:44]} 39. Re1 {[%emt 0:00:07]} Bxb2 {[%emt 0:00:04]} 40. Rd3 {[%emt 0:00:00]} Bc1 {[%emt 0:00:00]} 41. g3 {[%emt 0:04:23]} g5 {[%emt 0:05:51]} 42. gxh4 {[%emt 0:02:58]} gxh4 {[%emt 0:08:56]} 43. Kg2 {[%emt 0:00:55]} Bf4 {[%emt 0:05:51]} 44. Kf3 {[%emt 0:00:38]} Bc7 {[%emt 0:03:04]} 45. Rd5 {[%emt 0:00:40]} Rf6+ {[%emt 0:06:41]} 46. Kxe2 {[%emt 0:00:32]} Rf4 {[%emt 0:02:35]} 47. Rc1 {[%emt 0:01:34]} Rf7 {[%emt 0:00:30]} 48. Rc6 {[%emt 0:01:14]} Re7+ {[%emt 0:00:26]} 49. Kf1 {[%emt 0:00:55]} Rf7 {[%emt 0:00:32]} 50. Rxa6 {[%emt 0:00:28]} Bg3 {[%emt 0:00:28]} 51. Rd2 {[%emt 0:00:32]} Bf4 {[%emt 0:00:28]} 52. Rc2 {[%emt 0:00:42]} Kg7 {[%emt 0:00:48]} 53. Rac6 {[%emt 0:01:01]} Ra7 {[%emt 0:01:17]} 54. a6 {[%emt 0:00:19]} Be5 {[%emt 0:00:15]} 55. R2c5 {[%emt 0:00:46]} Bf4 {[%emt 0:00:19]} 56. Rb5 {[%emt 0:00:46]} Kg8 {[%emt 0:00:43]} 57. Rc8+ {[%emt 0:00:13]} 1-0

[Event "Hungarian U20 Junior-ch Women 2024"]
[Site "Budapest"]
[Date "2024.03.11"]
[Round "1.3"]
[White "Karacsonyi, Luca"]
[Black "Sipos, Stefania"]
[Result "1/2-1/2"]
[ECO "C54"]
[WhiteElo "1956"]
[BlackElo "1885"]
[Annotator "RC"]
[PlyCount "66"]
[EventDate "2024.03.10"]
[EventCountry "HUN"]
[SourceTitle "playchess.com"]
[Source "ChessBase"]
[SourceQuality "1"]
[TimeControl "40/5400+30:1800+30"]

1. e4 {[%emt 0:00:39]} e5 {[%emt 0:00:37]} 2. Nf3 {[%emt 0:00:25]} Nc6 {[%emt 0:00:08]} 3. Bc4 {[%emt 0:00:08]} Bc5 {[%emt 0:00:13]} 4. c3 {[%emt 0:00:27]} Nf6 {[%emt 0:00:22]} 5. d4 {[%emt 0:00:36]} exd4 {[%emt 0:00:12]} 6. cxd4 {[%emt 0:00:05]} Bb4+ {[%emt 0:00:25]} 7. Nbd2 {[%emt 0:00:12]} Nxe4 {[%emt 0:06:25]} 8. d5 {[%emt 0:01:23]} Ne7 {[%emt 0:00:13]} 9. O-O {[%emt 0:01:04]} Nxd2 {[%emt 0:02:31]} 10. Bxd2 {[%emt 0:00:45]} Bxd2 {[%emt 0:01:41]} 11. d6 {[%emt 0:01:22]} cxd6 {[%emt 0:01:37]} 12. Qxd2 {[%emt 0:00:08]} d5 {[%emt 0:04:31]} 13. Bxd5 {[%emt 0:00:11]} Nxd5 {[%emt 0:01:30]} 14. Qxd5 {[%emt 0:00:05]} O-O {[%emt 0:00:55]} 15. Rad1 {[%emt 0:00:43]} d6 {[%emt 0:05:34]} 16. Qxd6 {[%emt 0:00:08]} Qxd6 {[%emt 0:02:09]} 17. Rxd6 {[%emt 0:00:04]} Be6 {[%emt 0:05:21]} 18. a3 {[%emt 0:04:07]} Rfd8 {[%emt 0:08:34]} 19. Rfd1 {[%emt 0:01:57]} Rxd6 {[%emt 0:00:44]} 20. Rxd6 {[%emt 0:00:05]} Kf8 {[%emt 0:02:25]} 21. Ng5 {[%emt 0:09:18]} Ke7 {[%emt 0:04:52]} 22. Rd4 {[%emt 0:09:15]} Rc8 {[%emt 0:05:47]} 23. g4 {[%emt 0:06:13]} h6 {[%emt 0:09:33]} 24. Nxe6 {[%emt 0:02:34]} Kxe6 {[%emt 0:01:14]} 25. Rd2 {[%emt 0:02:37]} Rc4 {[%emt 0:09:45]} 26. h3 {[%emt 0:02:02]} h5 {[%emt 0:03:42]} 27. f3 {[%emt 0:08:09]} b5 {[%emt 0:07:11]} 28. Kf2 {[%emt 0:07:40]} b4 {[%emt 0:04:25]} 29. b3 {[%emt 0:02:22]} Rc3 {[%emt 0:02:05]} 30. axb4 {[%emt 0:00:34]} hxg4 {[%emt 0:01:52]} 31. hxg4 {[%emt 0:00:31]} Rxb3 {[%emt 0:01:34]} 32. Ra2 {[%emt 0:00:21]} Rxb4 {[%emt 0:00:42]} 33. Rxa7 {[%emt 0:00:06]} g5 {[%emt 0:03:47]} 1/2-1/2

[Event "Hungarian U20 Junior-ch Women 2024"]
[Site "Budapest"]
[Date "2024.03.11"]
[Round "1.4"]
[White "Toth, Nikoletta"]
[Black "Kiraly, Lilla Virag"]
[Result "1-0"]
[ECO "A45"]
[WhiteElo "1962"]
[BlackElo "1923"]
[Annotator "ChessBase"]
[PlyCount "61"]
[EventDate "2024.03.10"]
[EventCountry "HUN"]
[SourceTitle "playchess.com"]
[Source "ChessBase"]
[SourceQuality "1"]
[TimeControl "40/5400+30:1800+30"]

1. d4 {[%emt 0:01:20]} Nf6 {[%emt 0:01:03]} 2. Bf4 {[%emt 0:00:15]} d5 {[%emt 0:01:07]} 3. e3 {[%emt 0:00:16]} c5 {[%emt 0:00:18]} 4. c3 Nc6 {[%emt 0:01:11]} 5. Nd2 {[%emt 0:03:03]} Bf5 {[%emt 0:01:30]} 6. Ngf3 {[%emt 0:03:38]} Qb6 {[%emt 0:05:35]} 7. Qb3 {[%emt 0:05:43]} Qxb3 {[%emt 0:11:02]} 8. axb3 {[%emt 0:00:11]} Nh5 {[%emt 0:02:26]} 9. dxc5 {[%emt 0:04:50]} f6 {[%emt 0:18:42]} 10. Bg3 {[%emt 0:01:14]} e5 {[%emt 0:04:43]} 11. b4 {[%emt 0:00:30]} Nxg3 {[%emt 0:07:35]} 12. hxg3 {[%emt 0:00:15]} Nd8 {[%emt 0:12:41]} 13. Nh4 {[%emt 0:17:58]} Bd7 {[%emt 0:10:15]} 14. Ng6 {[%emt 0:02:43]} Rg8 {[%emt 0:00:15]} 15. Nxf8 {[%emt 0:02:05]} Kxf8 {[%emt 0:00:37]} 16. Rxh7 {[%emt 0:00:19]} Bf5 {[%emt 0:01:47]} 17. Rh4 {[%emt 0:01:01]} Ne6 {[%emt 0:00:38]} 18. e4 {[%emt 0:07:02]} dxe4 {[%emt 0:01:39]} 19. Nc4 {[%emt 0:00:36]} g5 {[%emt 0:04:12]} 20. Rh1 {[%emt 0:04:44]} Bg6 {[%emt 0:02:33]} 21. Nd6 {[%emt 0:01:09]} Ke7 {[%emt 0:03:38]} 22. Nxb7 {[%emt 0:01:04]} e3 {[%emt 0:01:29]} 23. fxe3 {[%emt 0:02:13]} Rgb8 {[%emt 0:01:24]} 24. Na5 {[%emt 0:05:23]} Be4 {[%emt 0:01:45]} 25. Kf2 {[%emt 0:10:33]} Nd8 {[%emt 0:01:15]} 26. Be2 {[%emt 0:01:43]} Nb7 {[%emt 0:01:19]} 27. Bf3 {[%emt 0:01:06]} Bxf3 {[%emt 0:00:30]} 28. Kxf3 {[%emt 0:00:20]} Nxa5 {[%emt 0:00:40]} 29. Rxa5 {[%emt 0:00:08]} a6 {[%emt 0:00:38]} 30. Rha1 {[%emt 0:01:24]} Rd8 {[%emt 0:00:59]} 31. Ke4 1-0

[Event "Hungarian U20 Junior-ch Women 2024"]
[Site "Budapest"]
[Date "2024.03.11"]
[Round "1.5"]
[White "Juhasz, Judit"]
[Black "Sulyok, Eszter"]
[Result "1/2-1/2"]
[ECO "B43"]
[WhiteElo "2002"]
[BlackElo "2082"]
[Annotator "RC"]
[PlyCount "108"]
[EventDate "2024.03.10"]
[EventCountry "HUN"]
[SourceTitle "playchess.com"]
[Source "ChessBase"]
[SourceQuality "1"]
[TimeControl "40/5400+30:1800+30"]

1. e4 {[%emt 0:00:37]} c5 {[%emt 0:00:51]} 2. Nf3 {[%emt 0:00:07]} e6 {[%emt 0:00:06]} 3. d4 {[%emt 0:00:06]} cxd4 {[%emt 0:00:04]} 4. Nxd4 {[%emt 0:00:04]} a6 {[%emt 0:00:02]} 5. Nc3 {[%emt 0:00:06]} Qc7 {[%emt 0:00:06]} 6. Be2 {[%emt 0:00:10]} Nf6 {[%emt 0:00:11]} 7. O-O {[%emt 0:00:08]} Be7 {[%emt 0:00:27]} 8. Be3 {[%emt 0:00:17]} O-O {[%emt 0:00:18]} 9. f4 {[%emt 0:00:08]} d6 {[%emt 0:00:06]} 10. Kh1 {[%emt 0:00:05]} Nbd7 {[%emt 0:04:29]} 11. Qe1 {[%emt 0:02:11]} b5 {[%emt 0:00:38]} 12. a3 {[%emt 0:00:04]} Bb7 {[%emt 0:00:07]} 13. Bf3 {[%emt 0:04:30]} Nc5 {[%emt 0:05:03]} 14. Bd2 {[%emt 0:02:41]} d5 {[%emt 0:04:18]} 15. exd5 {[%emt 0:04:36]} Nxd5 {[%emt 0:01:14]} 16. f5 {[%emt 0:03:15]} Nxc3 {[%emt 0:06:52]} 17. Bxc3 {[%emt 0:00:31]} Bxf3 {[%emt 0:07:54]} 18. Rxf3 {[%emt 0:00:24]} e5 {[%emt 0:01:36]} 19. Nb3 {[%emt 0:09:41]} Nxb3 {[%emt 0:03:38]} 20. cxb3 {[%emt 0:01:26]} Bf6 {[%emt 0:00:44]} 21. Re3 {[%emt 0:05:39]} Rfe8 {[%emt 0:00:21]} 22. Qg3 {[%emt 0:02:01]} Rad8 {[%emt 0:03:12]} 23. Rae1 {[%emt 0:02:26]} Rd5 {[%emt 0:04:21]} 24. Re4 {[%emt 0:09:24]} Qd7 {[%emt 0:02:37]} 25. Qf3 {[%emt 0:01:30]} h6 {[%emt 0:06:55]} 26. h3 {[%emt 0:05:14]} Rd3 {[%emt 0:01:23]} 27. Qf2 {[%emt 0:01:05]} Rd1 {[%emt 0:08:42]} 28. Kh2 {[%emt 0:04:05]} Rxe1 {[%emt 0:00:23]} 29. Rxe1 {[%emt 0:00:35]} e4 {[%emt 0:01:08]} 30. Bxf6 {[%emt 0:21:41]} Qd6+ {[%emt 0:01:28]} 31. g3 {[%emt 0:00:41]} Qxf6 {[%emt 0:00:18]} 32. Re2 {[%emt 0:01:49]} Re5 {[%emt 0:03:29]} 33. g4 {[%emt 0:00:22]} Qd6 {[%emt 0:06:17]} 34. Kg2 {[%emt 0:00:57]} Qd5 {[%emt 0:01:24]} 35. Qe3 {[%emt 0:02:57]} Re8 {[%emt 0:02:19]} 36. b4 {[%emt 0:03:35]} h5 {[%emt 0:03:36]} 37. Qc5 {[%emt 0:03:44]} Qd3 {[%emt 0:01:18]} 38. Qe3 {[%emt 0:00:08]} Qd5 {[%emt 0:02:50]} 39. Qc5 {[%emt 0:02:39]} Qb7 {[%emt 0:05:27]} 40. Qe3 {[%emt 0:00:00]} h4 {[%emt 0:00:00]} 41. Rd2 {[%emt 0:09:04]} Qc7 {[%emt 0:03:35]} 42. Rd4 {[%emt 0:12:39]} Qe5 {[%emt 0:00:34]} 43. Kg1 {[%emt 0:03:57]} Qc7 {[%emt 0:09:30]} 44. Rxe4 {[%emt 0:03:41]} Rxe4 {[%emt 0:00:09]} 45. Qxe4 {[%emt 0:00:04]} Qc1+ {[%emt 0:00:20]} 46. Kf2 {[%emt 0:00:10]} Qxb2+ {[%emt 0:00:08]} 47. Qe2 {[%emt 0:00:07]} Qb3 {[%emt 0:01:31]} 48. Qe3 {[%emt 0:00:45]} Qc2+ {[%emt 0:00:13]} 49. Qe2 {[%emt 0:01:27]} Qc7 {[%emt 0:00:43]} 50. Qf3 {[%emt 0:00:41]} Qd6 {[%emt 0:01:49]} 51. Kg2 {[%emt 0:01:48]} Kf8 {[%emt 0:04:07]} 52. Qe3 {[%emt 0:01:31]} Qd5+ {[%emt 0:00:40]} 53. Kf2 {[%emt 0:02:04]} Qa2+ {[%emt 0:01:18]} 54. Kf3 {[%emt 0:01:01]} Qd5+ {[%emt 0:04:56]} 1/2-1/2

[Event "Hungarian U20 Junior-ch Women 2024"]
[Site "Budapest"]
[Date "2024.03.12"]
[Round "2.1"]
[White "Toth, Lili"]
[Black "Sulyok, Eszter"]
[Result "0-1"]
[ECO "B40"]
[WhiteElo "2199"]
[BlackElo "2082"]
[Annotator "RC"]
[PlyCount "104"]
[EventDate "2024.03.10"]
[EventCountry "HUN"]
[SourceTitle "playchess.com"]
[Source "ChessBase"]
[SourceQuality "1"]
[TimeControl "40/5400+30:1800+30"]

1. e4 {[%emt 0:00:41]} c5 {[%emt 0:00:50]} 2. Nf3 {[%emt 0:00:08]} e6 {[%emt 0:00:30]} 3. b3 {[%emt 0:00:32]} d6 {[%emt 0:08:26]} 4. d4 {[%emt 0:02:23]} cxd4 {[%emt 0:00:18]} 5. Nxd4 {[%emt 0:00:21]} Nf6 {[%emt 0:00:13]} 6. Bd3 {[%emt 0:00:36]} Nbd7 {[%emt 0:03:29]} 7. O-O {[%emt 0:01:47]} g6 {[%emt 0:01:54]} 8. Bb2 {[%emt 0:01:42]} Bg7 {[%emt 0:00:21]} 9. c4 {[%emt 0:01:28]} O-O {[%emt 0:10:28]} 10. Nc3 {[%emt 0:02:14]} a6 {[%emt 0:00:49]} 11. Re1 {[%emt 0:11:34]} Nh5 {[%emt 0:07:26]} 12. Bf1 {[%emt 0:01:34]} b6 {[%emt 0:11:58]} 13. Qd2 {[%emt 0:02:07]} Qc7 {[%emt 0:06:22]} 14. Rad1 {[%emt 0:09:06]} Rd8 {[%emt 0:01:50]} 15. Nc2 {[%emt 0:03:53]} Ne5 {[%emt 0:03:30]} 16. Kh1 {[%emt 0:04:51]} Bb7 {[%emt 0:01:54]} 17. f4 {[%emt 0:03:34]} Ng4 {[%emt 0:08:25]} 18. Ne3 {[%emt 0:03:45]} Ngf6 {[%emt 0:05:14]} 19. Nc2 {[%emt 0:12:37]} Nxe4 {[%emt 0:07:44]} 20. Nxe4 {[%emt 0:01:47]} Bxe4 {[%emt 0:02:08]} 21. Rxe4 {[%emt 0:10:22]} Bxb2 {[%emt 0:00:07]} 22. Nd4 {[%emt 0:01:00]} d5 {[%emt 0:02:44]} 23. cxd5 {[%emt 0:03:41]} exd5 {[%emt 0:00:47]} 24. Re5 {[%emt 0:01:07]} Bxd4 {[%emt 0:05:56]} 25. Qxd4 {[%emt 0:00:03]} Nf6 {[%emt 0:00:42]} 26. Rde1 {[%emt 0:01:53]} Qc5 {[%emt 0:01:44]} 27. Qb2 {[%emt 0:00:32]} Ng4 {[%emt 0:00:32]} 28. R5e2 {[%emt 0:00:31]} d4 {[%emt 0:00:12]} 29. Rd2 {[%emt 0:04:55]} Ne3 {[%emt 0:01:28]} 30. Be2 {[%emt 0:01:05]} Qc3 {[%emt 0:01:05]} 31. Bf3 {[%emt 0:03:51]} Qxb2 {[%emt 0:01:43]} 32. Rxb2 {[%emt 0:00:02]} Rac8 {[%emt 0:00:06]} 33. Kg1 {[%emt 0:00:39]} Nc2 {[%emt 0:01:22]} 34. Rd1 {[%emt 0:00:47]} Ne3 {[%emt 0:01:03]} 35. Rd3 {[%emt 0:00:32]} Rc1+ {[%emt 0:00:32]} 36. Kf2 {[%emt 0:00:07]} Rc2+ {[%emt 0:01:47]} 37. Rxc2 {[%emt 0:01:31]} Nxc2 {[%emt 0:00:03]} 38. Rd2 {[%emt 0:02:09]} Na3 {[%emt 0:01:09]} 39. Be2 {[%emt 0:03:23]} Nb1 {[%emt 0:01:07]} 40. Rb2 {[%emt 0:00:00]} Nc3 {[%emt 0:00:00]} 41. Rc2 {[%emt 0:06:20]} b5 {[%emt 0:08:14]} 42. Kf3 {[%emt 0:11:03]} a5 {[%emt 0:03:50]} 43. g4 {[%emt 0:04:57]} Re8 {[%emt 0:02:12]} 44. f5 {[%emt 0:07:22]} Re3+ {[%emt 0:07:12]} 45. Kf2 {[%emt 0:00:09]} Rxe2+ {[%emt 0:02:32]} 46. Rxe2 {[%emt 0:00:33]} Nxe2 {[%emt 0:00:03]} 47. Kxe2 {[%emt 0:00:06]} gxf5 {[%emt 0:00:02]} 48. gxf5 {[%emt 0:03:06]} Kg7 {[%emt 0:00:04]} 49. Kd3 {[%emt 0:00:04]} Kf6 {[%emt 0:00:05]} 50. Kxd4 {[%emt 0:00:06]} Kxf5 {[%emt 0:00:03]} 51. Kc5 {[%emt 0:00:07]} Ke4 {[%emt 0:02:32]} 52. Kxb5 {[%emt 0:00:17]} f5 {[%emt 0:00:05]} 0-1

[Event "Hungarian U20 Junior-ch Women 2024"]
[Site "Budapest"]
[Date "2024.03.12"]
[Round "2.2"]
[White "Kiraly, Lilla Virag"]
[Black "Juhasz, Judit"]
[Result "1/2-1/2"]
[ECO "B45"]
[WhiteElo "1923"]
[BlackElo "2002"]
[Annotator "RC"]
[PlyCount "102"]
[EventDate "2024.03.10"]
[EventCountry "HUN"]
[SourceTitle "playchess.com"]
[Source "ChessBase"]
[SourceQuality "1"]
[TimeControl "40/5400+30:1800+30"]

1. e4 {[%emt 0:00:38]} c5 {[%emt 0:00:34]} 2. Nf3 {[%emt 0:00:12]} e6 {[%emt 0:00:03]} 3. d4 {[%emt 0:00:23]} cxd4 {[%emt 0:00:05]} 4. Nxd4 {[%emt 0:00:09]} Nc6 {[%emt 0:00:04]} 5. Nc3 {[%emt 0:01:08]} Bc5 {[%emt 0:00:08]} 6. Be3 {[%emt 0:13:23]} Qb6 {[%emt 0:00:11]} 7. Na4 {[%emt 0:17:20]} Qa5+ {[%emt 0:00:45]} 8. c3 {[%emt 0:00:28]} Bxd4 {[%emt 0:00:28]} 9. Bxd4 {[%emt 0:01:02]} Nxd4 {[%emt 0:00:07]} 10. Qxd4 {[%emt 0:00:44]} e5 {[%emt 0:00:13]} 11. Qb4 {[%emt 0:11:57]} Qxb4 {[%emt 0:05:16]} 12. cxb4 {[%emt 0:03:18]} Nf6 {[%emt 0:00:30]} 13. Nc3 {[%emt 0:01:36]} Ke7 {[%emt 0:02:36]} 14. Rd1 {[%emt 0:06:54]} d6 {[%emt 0:01:32]} 15. f3 {[%emt 0:06:09]} Be6 {[%emt 0:02:51]} 16. g4 {[%emt 0:12:41]} a6 {[%emt 0:02:03]} 17. a4 {[%emt 0:07:58]} Rac8 {[%emt 0:02:00]} 18. b5 {[%emt 0:03:03]} a5 {[%emt 0:00:55]} 19. Kf2 {[%emt 0:04:50]} Rc5 {[%emt 0:02:11]} 20. Bd3 {[%emt 0:02:57]} Bb3 {[%emt 0:03:02]} 21. Rd2 {[%emt 0:00:38]} Nd7 {[%emt 0:04:01]} 22. Bc2 {[%emt 0:01:16]} Bxc2 {[%emt 0:02:17]} 23. Rxc2 {[%emt 0:00:09]} Ke6 {[%emt 0:01:26]} 24. Rd1 {[%emt 0:01:53]} Nb6 {[%emt 0:01:10]} 25. Re2 {[%emt 0:01:21]} Rhc8 {[%emt 0:01:00]} 26. Rd3 {[%emt 0:00:39]} f6 {[%emt 0:08:33]} 27. h4 {[%emt 0:00:17]} d5 {[%emt 0:00:30]} 28. exd5+ {[%emt 0:00:23]} Nxd5 {[%emt 0:00:10]} 29. Red2 {[%emt 0:00:59]} Nxc3 {[%emt 0:01:47]} 30. bxc3 {[%emt 0:00:09]} R8c7 {[%emt 0:09:11]} 31. Rd6+ {[%emt 0:00:10]} Kf7 {[%emt 0:00:30]} 32. Rd7+ {[%emt 0:00:21]} Kg6 {[%emt 0:01:15]} 33. b6 {[%emt 0:00:50]} Rxd7 {[%emt 0:00:04]} 34. Rxd7 {[%emt 0:00:10]} Rxc3 {[%emt 0:00:44]} 35. Rxb7 {[%emt 0:00:20]} Rc4 {[%emt 0:00:54]} 36. Ra7 {[%emt 0:01:15]} Rxa4 {[%emt 0:00:09]} 37. b7 {[%emt 0:00:19]} Rb4 {[%emt 0:00:16]} 38. Kg3 {[%emt 0:00:45]} a4 {[%emt 0:03:20]} 39. h5+ {[%emt 0:00:17]} Kh6 {[%emt 0:01:33]} 40. Kh4 {[%emt 0:00:00]} g6 {[%emt 0:00:00]} 41. Rxa4 {[%emt 0:13:04]} Rxb7 {[%emt 0:08:30]} 42. Ra6 {[%emt 0:00:35]} Kg7 {[%emt 0:11:52]} 43. h6+ {[%emt 0:04:42]} Kxh6 {[%emt 0:06:05]} 44. Rxf6 {[%emt 0:00:14]} Rb4 {[%emt 0:03:36]} 45. Re6 {[%emt 0:00:37]} Rb3 {[%emt 0:03:48]} 46. g5+ {[%emt 0:00:23]} Kg7 {[%emt 0:00:04]} 47. Kg3 {[%emt 0:00:27]} Rb5 {[%emt 0:00:14]} 48. Re7+ {[%emt 0:00:31]} Kg8 {[%emt 0:00:04]} 49. Kg4 {[%emt 0:00:26]} Rc5 {[%emt 0:01:40]} 50. Kh4 {[%emt 0:01:56]} Rc3 {[%emt 0:02:08]} 51. Kg3 {[%emt 0:00:39]} Rc5 {[%emt 0:00:34]} 1/2-1/2